bitfinex-derivatives/quotes_BTCF0:USTF0_20260315
["timestamp","ask_amount","ask_price","bid_price","bid_amount"]
[1773605115863,0.08787193,71590.0,71584.0,0.041902]
[1773605116054,0.08787193,71590.0,71586.0,0.00735]
[1773605116257,0.043296,71595.0,71586.0,0.00735]
[1773605116456,0.0014,71595.0,71586.0,0.00735]
[1773605116651,0.041897,71593.0,71586.0,0.00735]
[1773605116867,0.06616571,71595.0,71586.0,0.00735]
[1773605117663,0.02426971,71595.0,71586.0,0.00735]
[1773605117859,0.0014,71595.0,71586.0,0.00735]
[1773605118771,0.0014,71595.0,71586.0,0.04925]
[1773605121167,0.0014,71595.0,71586.0,0.00735]
[1773605122063,0.043296,71595.0,71586.0,0.00735]
[1773605125167,0.041896,71594.0,71586.0,0.00735]
[1773605125370,0.0014,71595.0,71586.0,0.00735]
[1773605127065,0.041897,71593.0,71586.0,0.00735]
[1773605127575,0.043296,71595.0,71586.0,0.00735]
[1773605127968,0.041896,71594.0,71586.0,0.00735]
[1773605138589,0.0014,71595.0,71586.0,0.00735]
[1773605138785,0.08787367,71600.0,71586.0,0.00735]
[1773605138987,0.0014,71599.0,71586.0,0.03090763]
[1773605139183,0.0014,71598.0,71586.0,0.03090763]
[1773605139590,0.08787367,71600.0,71591.0,0.041898]
[1773605139890,0.0014,71599.0,71586.0,0.03090763]
[1773605140091,0.08787367,71600.0,71586.0,0.03090763]
[1773605140284,0.08787367,71600.0,71591.0,0.041898]
[1773605140586,0.0014,71599.0,71591.0,0.041898]
[1773605140989,0.0014,71598.0,71591.0,0.041898]
[1773605141591,0.041892,71601.0,71591.0,0.041898]
[1773605141792,0.0014,71597.0,71591.0,0.041898]
[1773605142088,0.041892,71601.0,71591.0,0.041898]
[1773605142285,0.0014,71596.0,71591.0,0.041898]
[1773605142592,0.17050682,71601.0,71591.0,0.041898]
[1773605142792,0.0014,71595.0,71591.0,0.041898]
[1773605142992,0.0014,71595.0,71589.0,0.041899]
[1773605143290,0.0014,71594.0,71589.0,0.041899]
[1773605143491,0.0014,71593.0,71589.0,0.041899]
[1773605143686,0.0014,71592.0,71589.0,0.041899]
[1773605144292,0.0014,71591.0,71589.0,0.041899]
[1773605144493,0.0014,71590.0,71589.0,0.041899]
[1773605145189,0.041893,71600.0,71589.0,0.041899]
[1773605145396,0.0014,71599.0,71589.0,0.041899]
[1773605145595,0.041893,71600.0,71589.0,0.041899]
[1773605145790,0.0014,71599.0,71589.0,0.041899]
[1773605146090,0.12861482,71601.0,71586.0,0.03825763]
[1773605146295,0.0014,71600.0,71586.0,0.03825763]
[1773605146686,0.0014,71599.0,71592.0,0.041897]
[1773605146995,0.0014,71598.0,71590.0,0.041898]
[1773605147992,0.0014,71598.0,71591.0,0.041898]
[1773605149900,0.0014,71598.0,71592.0,0.041897]
[1773605150494,0.0014,71598.0,71591.0,0.041898]
[1773605151193,0.0014,71598.0,71592.0,0.041897]
[1773605152195,0.0014,71598.0,71591.0,0.041898]
[1773605152595,0.0014,71598.0,71592.0,0.041897]
[1773605155202,0.0014,71597.0,71593.0,0.041897]
[1773605155408,0.041891,71603.0,71593.0,0.041897]
[1773605155606,0.0014,71602.0,71593.0,0.041897]
[1773605163513,0.12664366,71602.0,71593.0,0.041897]
[1773605167122,0.16853566,71602.0,71591.0,0.041898]
[1773605170333,0.16853566,71602.0,71592.0,0.041897]
[1773605173330,0.0014,71602.0,71593.0,0.041897]
[1773605173535,0.0014,71602.0,71594.0,0.041896]
[1773605174835,0.0014,71602.0,71592.0,0.041897]
[1773605175032,0.0014,71601.0,71592.0,0.041897]
[1773605175735,0.0014,71601.0,71593.0,0.041896]
[1773605177629,0.0014,71601.0,71588.0,0.02338658]
[1773605177831,0.08787367,71600.0,71588.0,0.02338658]
[1773605178138,0.08787367,71600.0,71592.0,0.041897]
[1773605182729,0.0014,71601.0,71592.0,0.041897]
[1773605187743,0.0014,71601.0,71593.0,0.041897]
[1773605192944,0.0014,71601.0,71594.0,0.041896]
[1773605196145,0.0014,71601.0,71586.0,0.03603957]
[1773605196742,0.0014,71601.0,71587.0,0.02133957]
[1773605196946,0.08785115,71600.0,71593.0,0.041897]
[1773605199346,0.08785115,71600.0,71594.0,0.041896]
[1773605199942,0.0014,71601.0,71594.0,0.041896]
[1773605209450,0.0014,71601.0,71592.0,0.041897]
[1773605209650,0.0014,71601.0,71594.0,0.041896]
[1773605215756,0.0014,71601.0,71595.0,0.041895]
[1773605217357,0.0014,71601.0,71596.0,0.041895]
[1773605219057,0.0014,71600.0,71587.0,0.01758365]
[1773605219253,0.0014,71599.0,71587.0,0.01758365]
[1773605219453,0.0014,71598.0,71587.0,0.01758365]
[1773605219653,0.17530723,71609.0,71597.0,0.041894]
[1773605219855,0.0014,71608.0,71597.0,0.041894]
[1773605220160,0.17530723,71609.0,71597.0,0.041894]
[1773605220356,0.043288,71608.0,71597.0,0.041894]
[1773605220863,0.043288,71608.0,71588.0,0.01757018]
[1773605220864,0.041889,71606.0,71595.0,0.041895]
[1773605225559,0.0014,71605.0,71586.0,0.0147]
[1773605225753,0.0014,71605.0,71588.0,0.01564771]
[1773605226152,0.13341923,71609.0,71588.0,0.01564771]
[1773605226355,0.0014,71608.0,71588.0,0.01564771]
[1773605226869,0.0014,71608.0,71598.0,0.041893]
[1773605227466,0.0024,71608.0,71598.0,0.041893]
[1773605236674,0.0024,71608.0,71599.0,0.041893]
[1773605236859,0.001,71608.0,71604.0,0.04189]
[1773605237062,0.0014,71607.0,71602.0,0.01264559]
[1773605237266,0.0014,71607.0,71603.0,0.041891]
[1773605237464,0.001,71608.0,71603.0,0.041891]
[1773605237669,0.0014,71607.0,71603.0,0.041891]
[1773605238056,0.0014,71606.0,71603.0,0.041891]
[1773605238462,0.001,71608.0,71603.0,0.041891]
[1773605238668,0.0014,71607.0,71603.0,0.041891]
[1773605239164,0.0014,71606.0,71603.0,0.041891]
[1773605239565,0.12510848,71612.0,71603.0,0.041891]
[1773605239873,0.0014,71611.0,71603.0,0.041891]
[1773605240058,0.12973615,71613.0,71603.0,0.041891]
[1773605240263,0.0014,71610.0,71603.0,0.041891]
[1773605240768,0.0014,71609.0,71603.0,0.041891]
[1773605240969,0.0014,71609.0,71601.0,0.041892]
[1773605241165,0.0014,71608.0,71602.0,0.041891]
[1773605241665,0.0014,71607.0,71602.0,0.041891]
[1773605241971,0.0014,71606.0,71602.0,0.041891]
[1773605242174,0.0014,71605.0,71602.0,0.041891]
[1773605242472,0.0014,71604.0,71602.0,0.041891]
[1773605242674,0.0014,71603.0,71602.0,0.041891]
[1773605243266,0.0014,71603.0,71586.0,0.0147]
[1773605243472,0.0014,71603.0,71587.0,0.01011363]
[1773605245074,0.0014,71603.0,71598.0,0.041894]
[1773605245277,0.0014,71603.0,71590.0,0.01319878]
[1773605245974,0.0014,71603.0,71598.0,0.041894]
[1773605246175,0.0014,71603.0,71590.0,0.01319878]
[1773605246977,0.0014,71603.0,71598.0,0.041894]
[1773605247178,0.0014,71603.0,71590.0,0.01319878]
[1773605248076,0.0014,71603.0,71598.0,0.041894]
[1773605248980,0.0014,71603.0,71593.0,0.01953974]
[1773605249382,0.00735,71610.0,71593.0,0.01953974]
[1773605249681,0.0014,71609.0,71593.0,0.01953974]
[1773605249882,0.00735,71610.0,71593.0,0.01953974]
[1773605250084,0.0014,71609.0,71600.0,0.041892]
[1773605250384,0.00735,71610.0,71600.0,0.041892]
[1773605250573,0.0014,71609.0,71600.0,0.041892]
[1773605251080,0.0014,71608.0,71600.0,0.041892]
[1773605251480,0.0014,71607.0,71600.0,0.041892]
[1773605251988,0.0014,71606.0,71600.0,0.041892]
[1773605252584,0.0014,71605.0,71600.0,0.041892]
[1773605252888,0.08782874,71610.0,71600.0,0.041892]
[1773605253078,0.0014,71609.0,71600.0,0.041892]
[1773605253475,0.08782874,71610.0,71600.0,0.041892]
[1773605253476,0.0014,71608.0,71600.0,0.041892]
[1773605253874,0.08782874,71610.0,71600.0,0.041892]
[1773605254075,0.0014,71609.0,71600.0,0.041892]
[1773605254482,0.0014,71608.0,71600.0,0.041892]
[1773605254885,0.08782874,71610.0,71600.0,0.041892]
[1773605255086,0.0014,71609.0,71600.0,0.041892]
[1773605255387,0.08782874,71610.0,71600.0,0.041892]
[1773605255589,0.0014,71609.0,71600.0,0.041892]
[1773605255889,0.12971574,71610.0,71600.0,0.041892]
[1773605256090,0.0014,71609.0,71600.0,0.041892]
[1773605256481,0.0014,71608.0,71601.0,0.041892]
[1773605256795,0.0014,71608.0,71602.0,0.041891]
[1773605256978,0.0014,71607.0,71602.0,0.041891]
[1773605257489,0.0014,71606.0,71602.0,0.041891]
[1773605257988,0.0014,71605.0,71602.0,0.041891]
[1773605258179,0.08882874,71610.0,71602.0,0.041891]
[1773605258380,0.08782874,71610.0,71602.0,0.041891]
[1773605258587,0.0014,71609.0,71602.0,0.041891]
[1773605259092,0.0014,71608.0,71602.0,0.041891]
[1773605259489,0.0014,71607.0,71605.0,0.04189]
[1773605259879,0.08717169,71610.0,71605.0,0.04189]
[1773605260080,0.0014,71609.0,71605.0,0.04189]
[1773605261299,0.08782874,71615.0,71608.0,0.041887]
[1773605261593,0.0014,71614.0,71608.0,0.041887]
[1773605261794,0.00735,71619.0,71597.0,0.01996374]
[1773605262092,0.00735,71619.0,71595.0,0.01470288]
[1773605262093,0.0014,71618.0,71595.0,0.01470288]
[1773605262486,0.001,71615.0,71595.0,0.01470288]
[1773605262686,0.001,71614.0,71595.0,0.01470288]
[1773605262998,0.0014,71613.0,71609.0,0.041887]
[1773605263295,0.0014,71612.0,71599.0,0.01465967]
[1773605263494,0.0014,71611.0,71599.0,0.01465967]
[1773605263694,0.0014,71610.0,71599.0,0.01465967]
[1773605263892,0.001,71618.0,71599.0,0.01465967]
[1773605264093,0.0014,71617.0,71600.0,0.01333686]
[1773605264485,0.002,71618.0,71611.0,0.041886]
[1773605264690,0.0014,71617.0,71611.0,0.041886]
[1773605265190,0.00735,71619.0,71614.0,0.041884]
[1773605265400,0.0014,71616.0,71612.0,0.041885]
[1773605265592,0.0014,71615.0,71612.0,0.041885]
[1773605265888,0.0014,71614.0,71612.0,0.041885]
[1773605266088,0.0014,71613.0,71612.0,0.041885]
[1773605266301,0.001,71619.0,71612.0,0.041885]
[1773605266504,0.0014,71618.0,71612.0,0.041885]
[1773605266705,0.0014,71617.0,71612.0,0.041885]
[1773605266890,0.0014,71616.0,71612.0,0.041885]
[1773605267085,0.0014,71615.0,71612.0,0.041885]
[1773605267398,0.25558125,71624.0,71612.0,0.041885]
[1773605267698,0.0014,71623.0,71612.0,0.041885]
[1773605267891,0.04188,71622.0,71610.0,0.041886]
[1773605268086,0.08782874,71620.0,71610.0,0.041886]
[1773605269095,0.08782874,71620.0,71611.0,0.041886]
[1773605269401,0.08782874,71620.0,71612.0,0.041885]
[1773605270097,0.0014,71619.0,71612.0,0.041886]
[1773605270494,0.0014,71618.0,71612.0,0.041886]
[1773605275201,0.0014,71618.0,71613.0,0.041885]
[1773605280105,0.0014,71618.0,71607.0,0.01793998]
[1773605280794,0.0014,71618.0,71613.0,0.041885]
[1773605287805,0.08782874,71622.0,71605.0,0.0140631]
[1773605287999,0.08782874,71622.0,71604.0,0.04189]
[1773605288000,0.0014,71621.0,71616.0,0.041883]
[1773605288203,0.041877,71627.0,71611.0,0.0140631]
[1773605288204,0.0014,71620.0,71611.0,0.0140631]
[1773605288405,0.0014,71619.0,71611.0,0.0140631]
[1773605288606,0.12970374,71630.0,71618.0,0.041882]
[1773605288806,0.0014,71629.0,71618.0,0.041882]
[1773605289110,0.0014,71628.0,71618.0,0.041882]
[1773605289409,0.041876,71629.0,71618.0,0.041882]
[1773605289613,0.0014,71628.0,71620.0,0.04188]
[1773605289802,0.0014,71628.0,71618.0,0.041882]
[1773605290311,0.0014,71627.0,71618.0,0.041882]
[1773605291004,0.02333407,71627.0,71606.0,0.0150493]
[1773605291211,0.02193407,71615.0,71595.0,0.0150493]
[1773605291400,0.08782874,71610.0,71589.0,0.0150493]
[1773605291595,0.0014,71609.0,71603.0,0.041891]
[1773605292008,0.0014,71608.0,71603.0,0.041891]
[1773605292400,0.08782874,71610.0,71603.0,0.041891]
[1773605292401,0.0014,71607.0,71603.0,0.041891]
[1773605292909,0.0014,71606.0,71603.0,0.041891]
[1773605293097,0.08782874,71610.0,71603.0,0.041891]
[1773605293294,0.0014,71609.0,71603.0,0.041891]
[1773605294704,0.0014,71609.0,71604.0,0.04189]
[1773605295009,0.0014,71609.0,71593.0,0.0148638]
[1773605295411,0.0014,71609.0,71602.0,0.041891]
[1773605295710,0.0014,71609.0,71593.0,0.0148638]
[1773605295911,7.4e-07,71603.0,71600.0,0.041892]
[1773605296111,0.0014,71609.0,71589.0,0.01718313]
[1773605296903,0.0014,71609.0,71587.0,0.01921477]
[1773605297213,0.0014,71609.0,71602.0,0.041891]
[1773605297813,0.0056,71609.0,71602.0,0.041891]
[1773605300411,0.0014,71609.0,71602.0,0.041891]
[1773605306916,0.0014,71609.0,71600.0,0.041892]
[1773605307111,0.0014,71609.0,71601.0,0.041892]
[1773605320423,0.0014,71609.0,71602.0,0.041891]
[1773605320624,0.0042,71608.0,71602.0,0.041891]
[1773605321025,0.0042,71608.0,71592.0,0.01921477]
[1773605322126,0.0042,71608.0,71601.0,0.041892]
[1773605325329,0.0042,71608.0,71602.0,0.041891]
[1773605325722,0.0014,71609.0,71602.0,0.041891]
[1773605328130,0.041894,71598.0,71586.0,0.0147]
[1773605328435,0.0014,71597.0,71587.0,0.0419]
[1773605328833,0.041897,71594.0,71575.0,0.01726443]
[1773605329024,0.0878404,71590.0,71575.0,0.01726443]
[1773605329221,0.041901,71585.0,71569.0,0.01726443]
[1773605329434,0.0014,71589.0,71569.0,0.01726443]
[1773605329435,0.0878404,71580.0,71575.0,0.041907]
[1773605329629,0.0014,71579.0,71575.0,0.041907]
[1773605329831,0.0014,71578.0,71569.0,0.01726443]
[1773605330028,0.0014,71577.0,71569.0,0.01726443]
[1773605330332,0.0014,71576.0,71569.0,0.01726443]
[1773605330531,0.0878404,71580.0,71575.0,0.041907]
[1773605330730,0.0014,71579.0,71575.0,0.041907]
[1773605330925,0.0014,71578.0,71575.0,0.041907]
[1773605331133,0.0878404,71585.0,71575.0,0.041907]
[1773605331338,0.0014,71584.0,71575.0,0.041907]
[1773605331828,0.0042,71583.0,71575.0,0.041907]
[1773605333227,0.0042,71583.0,71576.0,0.041906]
[1773605336530,0.0042,71583.0,71577.0,0.041906]
[1773605338930,0.0042,71583.0,71575.0,0.049257]
[1773605340532,0.0014,71584.0,71575.0,0.049257]
[1773605340732,0.0042,71583.0,71575.0,0.049257]
[1773605343940,0.0042,71583.0,71576.0,0.041907]
[1773605345735,0.0014,71584.0,71576.0,0.041907]
[1773605353536,0.0014,71584.0,71575.0,0.00735]
[1773605353747,0.0042,71583.0,71575.0,0.00735]
[1773605354142,0.041903,71582.0,71575.0,0.00735]
[1773605355341,0.0042,71583.0,71575.0,0.00735]
[1773605356142,0.0042,71583.0,71575.0,0.049257]
[1773605356548,0.0042,71583.0,71575.0,0.00735]
[1773605356846,0.00297463,71583.0,71576.0,0.041906]
[1773605359151,0.00297463,71583.0,71575.0,0.03030835]
[1773605359351,0.00297463,71583.0,71575.0,0.00735]
[1773605360339,0.0014,71584.0,71575.0,0.00735]
[1773605360549,0.0014,71584.0,71568.0,9.957e-05]
[1773605360746,0.0878404,71580.0,71568.0,9.957e-05]
[1773605361954,0.0878404,71580.0,71570.0,0.04191]
[1773605362255,0.0878404,71580.0,71568.0,0.02076106]
[1773605362755,0.09081503,71580.0,71568.0,0.02076106]
[1773605363356,0.09081503,71580.0,71569.0,0.02066149]
[1773605363948,0.09081503,71580.0,71571.0,0.041909]
[1773605365459,0.09081503,71580.0,71572.0,0.041909]
[1773605365757,0.0878404,71580.0,71572.0,0.041909]
[1773605366261,0.0014,71584.0,71573.0,0.02066149]
[1773605366559,0.0878404,71583.0,71575.0,0.041907]
[1773605366949,0.0014,71584.0,71575.0,0.041907]
[1773605367150,0.0014,71584.0,71573.0,0.041908]
[1773605367350,0.0014,71584.0,71574.0,0.041908]
[1773605369362,0.0014,71584.0,71575.0,0.041907]
[1773605372955,0.0014,71584.0,71569.0,0.00735]
[1773605372956,0.0014,71584.0,71576.0,0.041906]
[1773605373255,0.0014,71584.0,71577.0,0.041906]
[1773605375366,1e-06,71584.0,71573.0,0.0182495]
[1773605375567,0.0014,71583.0,71580.0,0.041904]
[1773605375763,0.0014,71582.0,71580.0,0.05923328]
[1773605375963,0.0014,71581.0,71580.0,0.05923328]
[1773605376367,0.08789756,71590.0,71580.0,0.05923328]
[1773605376573,0.0014,71589.0,71580.0,0.05923328]
[1773605376769,0.0014,71588.0,71580.0,0.041904]
[1773605377474,0.08789756,71590.0,71580.0,0.041904]
[1773605377671,0.0014,71589.0,71580.0,0.041904]
[1773605377872,0.0014,71588.0,71578.0,0.041905]
[1773605380671,0.0014,71588.0,71579.0,0.041905]
[1773605381880,0.0014,71587.0,71579.0,0.041905]
[1773605382578,0.0014,71586.0,71579.0,0.041905]
[1773605384975,0.0014,71585.0,71579.0,0.041905]
[1773605385176,0.041899,71589.0,71579.0,0.041905]
[1773605385380,0.0014,71588.0,71579.0,0.041905]
[1773605389683,0.0014,71587.0,71579.0,0.041905]
[1773605389876,0.0014,71586.0,71579.0,0.041905]
[1773605394489,0.0014,71586.0,71580.0,0.041904]
[1773605395186,0.26488719,71590.0,71580.0,0.041904]
[1773605395376,0.0014,71589.0,71577.0,0.00735]
[1773605395581,0.0014,71588.0,71579.0,0.01599036]
[1773605395780,0.041894,71598.0,71587.0,0.0419]
[1773605395980,0.0014,71594.0,71587.0,0.0419]
[1773605396180,0.0014,71593.0,71587.0,0.0419]
[1773605396381,0.0014,71593.0,71588.0,0.0419]
[1773605396590,0.041894,71598.0,71588.0,0.0419]
[1773605396786,0.0014,71592.0,71588.0,0.0419]
[1773605397090,0.041894,71598.0,71588.0,0.0419]
[1773605397391,0.0014,71591.0,71588.0,0.0419]
[1773605397590,0.041894,71598.0,71588.0,0.0419]
[1773605397791,0.0014,71590.0,71588.0,0.0419]
[1773605398193,0.0014,71589.0,71588.0,0.0419]
[1773605398790,0.0014,71589.0,71588.0,0.06164393]
[1773605399093,0.041894,71598.0,71588.0,0.06164393]
[1773605399295,0.0014,71594.0,71588.0,0.041899]
[1773605399486,0.0014,71593.0,71588.0,0.041899]
[1773605399886,0.0014,71592.0,71588.0,0.041899]
[1773605400094,0.00126956,71591.0,71588.0,0.049249]
[1773605400287,0.48819134,71599.0,71588.0,0.049249]
[1773605400488,0.0014,71598.0,71588.0,0.049249]
[1773605400696,0.0014,71594.0,71588.0,0.049249]
[1773605400895,0.0014,71593.0,71588.0,0.049249]
[1773605401289,0.48819134,71599.0,71588.0,0.049249]
[1773605401488,0.0014,71598.0,71588.0,0.049249]
[1773605401888,0.0014,71594.0,71588.0,0.049249]
[1773605402392,0.0014,71593.0,71588.0,0.049249]
[1773605402786,0.349413,71599.0,71588.0,0.049249]
[1773605403095,0.0014,71598.0,71588.0,0.049249]
[1773605403294,0.08789756,71600.0,71589.0,0.041899]
[1773605403499,0.0014,71594.0,71591.0,0.02008867]
[1773605403793,0.0014,71594.0,71588.0,0.049249]
[1773605403994,0.0014,71593.0,71588.0,0.049249]
[1773605404397,0.0014,71594.0,71588.0,0.049249]
[1773605404599,0.0014,71592.0,71588.0,0.06916597]
[1773605404992,0.0014,71591.0,71588.0,0.02726697]
[1773605405298,0.08789756,71600.0,71590.0,0.041898]
[1773605405498,0.0014,71599.0,71590.0,0.041898]
[1773605405699,0.0014,71598.0,71590.0,0.041898]
[1773605406198,0.0014,71597.0,71590.0,0.041898]
[1773605406391,0.0014,71594.0,71590.0,0.041898]
[1773605406898,0.0014,71593.0,71590.0,0.041898]
[1773605407199,0.0014,71592.0,71590.0,0.041898]
[1773605407391,0.08789756,71600.0,71590.0,0.041898]
[1773605407900,0.0014,71599.0,71590.0,0.041898]
[1773605408098,0.08789756,71600.0,71590.0,0.041898]
[1773605408398,0.0014,71599.0,71590.0,0.041898]
[1773605408601,0.08789756,71600.0,71590.0,0.041898]
[1773605408799,0.0014,71599.0,71590.0,0.041898]
[1773605409300,0.0014,71594.0,71590.0,0.041898]
[1773605409693,0.0014,71593.0,71590.0,0.041898]
[1773605410000,0.0014,71594.0,71588.0,0.02726697]
[1773605410195,0.0014,71594.0,71591.0,0.041898]
[1773605410391,0.0014,71593.0,71591.0,0.041898]
[1773605410591,0.0014,71592.0,71591.0,0.041898]
[1773605410791,0.0014,71592.0,71589.0,0.06063129]
[1773605410992,0.0014,71594.0,71589.0,0.06063129]
[1773605411194,0.0014,71593.0,71589.0,0.06063129]
[1773605411389,0.0014,71592.0,71590.0,0.041898]
[1773605411594,0.0014,71594.0,71590.0,0.041898]
[1773605411799,0.0014,71593.0,71590.0,0.041898]
[1773605412103,0.0014,71592.0,71590.0,0.041898]
[1773605412302,0.0014,71591.0,71590.0,0.041898]
[1773605412506,0.0014,71594.0,71590.0,0.041898]
[1773605412804,0.0014,71593.0,71590.0,0.041898]
[1773605413005,0.08789756,71600.0,71590.0,0.041898]
[1773605413205,0.0014,71599.0,71590.0,0.041898]
[1773605413503,0.12979056,71600.0,71590.0,0.041898]
[1773605413805,0.0014,71599.0,71590.0,0.041898]
[1773605414011,0.12979056,71600.0,71590.0,0.041898]
[1773605414305,0.0014,71599.0,71590.0,0.041898]
[1773605414505,0.12979056,71600.0,71590.0,0.041898]
[1773605414705,0.0014,71599.0,71590.0,0.041898]
[1773605415004,0.12979056,71600.0,71590.0,0.041898]
[1773605415205,0.0014,71599.0,71590.0,0.041898]
[1773605418017,0.12979056,71600.0,71590.0,0.041898]
[1773605418215,0.0014,71595.0,71591.0,0.01856798]
[1773605418816,0.0014,71594.0,71591.0,0.01856798]
[1773605419305,0.08789756,71600.0,71589.0,0.01836022]
[1773605419503,0.0014,71599.0,71589.0,0.01836022]
[1773605419696,0.08789756,71600.0,71591.0,0.041897]
[1773605419902,0.0014,71595.0,71591.0,0.041897]
[1773605420310,0.0014,71594.0,71591.0,0.041897]
[1773605420702,0.08789756,71600.0,71591.0,0.041897]
[1773605420907,0.0014,71599.0,71591.0,0.041897]
[1773605421206,0.08789756,71600.0,71591.0,0.041897]
[1773605421407,0.0014,71595.0,71591.0,0.041897]
[1773605421802,0.0014,71594.0,71591.0,0.041897]
[1773605422201,0.08789756,71600.0,71592.0,0.041897]
[1773605422401,0.0014,71599.0,71592.0,0.041897]
[1773605422801,0.0014,71595.0,71592.0,0.041897]
[1773605423404,0.0014,71594.0,71592.0,0.041897]
[1773605423709,0.08789756,71600.0,71594.0,0.041896]
[1773605423908,0.0014,71599.0,71594.0,0.041896]
[1773605424112,0.0014,71595.0,71592.0,0.041897]
[1773605424405,0.13938117,71602.0,71592.0,0.041897]
[1773605424611,0.0014,71601.0,71592.0,0.041897]
[1773605424801,0.0014,71600.0,71592.0,0.041897]
[1773605425212,0.0014,71595.0,71592.0,0.041897]
[1773605425410,0.0014,71594.0,71592.0,0.041897]
[1773605426211,0.0014,71593.0,71592.0,0.041897]
[1773605426413,0.00735,71603.0,71594.0,0.041896]
[1773605426708,0.0014,71602.0,71594.0,0.041896]
[1773605427010,0.0014,71601.0,71592.0,0.041897]
[1773605427407,0.12978756,71604.0,71592.0,0.041897]
[1773605427609,0.0014,71603.0,71592.0,0.041897]
[1773605427910,0.12978756,71604.0,71592.0,0.041897]
[1773605428111,0.0014,71603.0,71592.0,0.041897]
[1773605428311,0.0014,71603.0,71594.0,0.00735]
[1773605428510,0.0014,71602.0,71594.0,0.00735]
[1773605429013,0.0014,71601.0,71594.0,0.00735]
[1773605432416,0.041892,71602.0,71594.0,0.00735]
[1773605432629,0.0014,71601.0,71594.0,0.00735]
[1773605433509,0.0014,71600.0,71594.0,0.00735]
[1773605433911,0.041892,71602.0,71594.0,0.00735]
[1773605434115,0.0014,71601.0,71594.0,0.00735]
[1773605435423,0.0014,71601.0,71590.0,0.041898]
[1773605435618,0.0014,71601.0,71591.0,0.041898]
[1773605437322,0.0014,71601.0,71595.0,0.00735]
[1773605438113,0.00735,71597.0,71595.0,0.00735]
[1773605453129,0.00735,71597.0,71591.0,0.041897]
[1773605453428,0.0014,71601.0,71591.0,0.041897]
[1773605454728,0.0014,71601.0,71592.0,0.041897]
[1773605455632,0.00875,71601.0,71592.0,0.041897]
[1773605456631,0.14685775,71601.0,71592.0,0.041897]
[1773605458427,0.14685775,71601.0,71593.0,0.041897]
[1773605462639,0.00875,71601.0,71593.0,0.041897]
[1773605462833,0.0014,71600.0,71594.0,0.041896]
[1773605463437,0.0014,71599.0,71594.0,0.041896]
[1773605463625,0.0014,71599.0,71595.0,0.041895]
[1773605463825,0.00735,71601.0,71595.0,0.041895]
[1773605464233,0.0014,71600.0,71595.0,0.041895]
[1773605464636,0.0014,71599.0,71595.0,0.041895]
[1773605465439,0.00735,71601.0,71595.0,0.041895]
[1773605465636,0.0014,71598.0,71595.0,0.041895]
[1773605467343,0.0014,71598.0,71594.0,0.041896]
[1773605475433,0.0878527,71610.0,71588.0,0.01123513]
[1773605475744,0.043288,71609.0,71583.0,0.01085315]
[1773605476140,0.0014,71608.0,71598.0,0.00735]
[1773605476541,0.041888,71609.0,71598.0,0.00735]
[1773605476741,0.0014,71608.0,71598.0,0.00735]
[1773605476945,0.00735,71600.0,71598.0,0.049244]
[1773605477242,0.0014,71599.0,71598.0,0.049244]
[1773605477538,0.041888,71608.0,71598.0,0.041894]
[1773605477743,0.0014,71607.0,71598.0,0.041894]
[1773605478134,0.0014,71606.0,71598.0,0.041894]
[1773605478546,0.041888,71608.0,71598.0,0.041894]
[1773605478734,0.0014,71607.0,71598.0,0.041894]
[1773605479134,0.0014,71606.0,71598.0,0.041894]
[1773605479644,0.0014,71605.0,71598.0,0.041894]
[1773605480136,0.0014,71604.0,71596.0,0.00735]
[1773605480732,0.13880726,71608.0,71596.0,0.00735]
[1773605480937,0.0014,71607.0,71597.0,0.01237971]
[1773605481140,0.0014,71606.0,71601.0,0.041892]
[1773605481632,0.0878527,71610.0,71601.0,0.041892]
[1773605481837,0.0014,71605.0,71601.0,0.041892]
[1773605482242,0.0014,71604.0,71601.0,0.041892]
[1773605482646,0.0878527,71610.0,71601.0,0.041892]
[1773605482843,0.0014,71609.0,71601.0,0.041892]
[1773605483236,0.0014,71608.0,71601.0,0.041892]
[1773605483638,0.0878527,71610.0,71601.0,0.041892]
[1773605483838,0.0014,71607.0,71601.0,0.041892]
[1773605484143,0.0878527,71610.0,71601.0,0.041892]
[1773605484344,0.0014,71606.0,71601.0,0.041892]
[1773605484743,0.0014,71605.0,71601.0,0.041892]
[1773605485150,0.0878527,71610.0,71601.0,0.041892]
[1773605485346,0.0014,71604.0,71601.0,0.041892]
[1773605485652,0.0878527,71610.0,71601.0,0.041892]
[1773605485941,0.0878527,71610.0,71604.0,0.04189]
[1773605486147,0.0014,71609.0,71602.0,0.041891]
[1773605486344,0.041884,71616.0,71605.0,0.04189]
[1773605486544,0.0014,71615.0,71605.0,0.04189]
[1773605486739,0.043284,71615.0,71603.0,0.04189]
[1773605486943,0.043285,71614.0,71603.0,0.04189]
[1773605487144,0.0878527,71613.0,71603.0,0.04189]
[1773605487646,0.0014,71612.0,71603.0,0.04189]
[1773605487944,0.0014,71611.0,71603.0,0.04189]
[1773605488443,0.0014,71610.0,71603.0,0.04189]
[1773605489547,0.0014,71609.0,71596.0,0.00735]
[1773605489744,0.02035098,71602.0,71580.0,0.01557785]
[1773605489943,0.02175098,71601.0,71591.0,0.041898]
[1773605490149,0.02175098,71600.0,71591.0,0.041898]
[1773605490351,0.0014,71599.0,71591.0,0.041898]
[1773605491052,0.02175098,71599.0,71591.0,0.041898]
[1773605491245,0.02175098,71599.0,71580.0,0.01557785]
[1773605491647,0.02175098,71599.0,71584.0,0.041902]
[1773605491648,0.0878527,71590.0,71584.0,0.041902]
[1773605491847,0.0014,71589.0,71585.0,0.041901]
[1773605492050,0.0014,71588.0,71585.0,0.041901]
[1773605492348,0.0014,71587.0,71571.0,0.0014]
[1773605492552,0.0014,71586.0,71572.0,0.01530961]